bitfinex-derivatives/quotes_BTCF0:USTF0_20241217
["timestamp","ask_amount","ask_price","bid_price","bid_amount"]
[1734425218997,0.0821,107340.0,107330.0,0.046587]
[1734425219409,0.04705533,107340.0,107330.0,0.046587]
[1734425219702,0.04705533,107340.0,107330.0,0.12992022]
[1734425219901,0.04705533,107340.0,107330.0,0.13877438]
[1734425220110,0.0407,107340.0,107330.0,0.13877438]
[1734425220508,0.0407,107340.0,107330.0,0.17957438]
[1734425221806,0.0407,107340.0,107330.0,0.17083989]
[1734425222703,0.0407,107340.0,107330.0,0.51487989]
[1734425222910,0.0407,107340.0,107330.0,0.87567989]
[1734425224009,0.0407,107350.0,107340.0,0.046583]
[1734425224215,0.0407,107350.0,107340.0,0.12991622]
[1734425226311,0.4041,107360.0,107350.0,0.046578]
[1734425226506,0.0433,107360.0,107350.0,0.49071122]
[1734425226811,0.0433,107360.0,107350.0,0.12991122]
[1734425227009,0.40168993,107370.0,107360.0,0.046574]
[1734425227208,0.40168993,107370.0,107360.0,0.12990722]
[1734425227604,0.04088993,107370.0,107360.0,0.12990722]
[1734425228514,0.04088993,107370.0,107360.0,0.49070722]
[1734425229904,0.04088993,107370.0,107360.0,0.12990722]
[1734425233413,0.04088993,107370.0,107360.0,0.1683902]
[1734425234308,0.04088993,107370.0,107360.0,0.5291902]
[1734425235212,0.00088993,107370.0,107360.0,0.5291902]
[1734425235519,0.00088993,107370.0,107360.0,0.57108166]
[1734425236021,0.00088993,107370.0,107360.0,0.21028166]
[1734425238517,0.00088993,107370.0,107360.0,0.22902206]
[1734425239351,0.00138993,107370.0,107360.0,0.58982206]
[1734425242112,0.00138993,107370.0,107360.0,0.61569606]
[1734425242314,0.00059993,107370.0,107360.0,0.61569606]
[1734425242519,0.00059993,107370.0,107360.0,0.67029967]
[1734425242821,0.00059993,107370.0,107360.0,0.61569606]
[1734425243919,0.0419,107380.0,107370.0,0.04657]
[1734425244119,0.0419,107380.0,107370.0,0.15577722]
[1734425244320,0.0419,107380.0,107370.0,0.10117361]
[1734425246421,0.0424,107380.0,107370.0,0.10117361]
[1734425246618,0.0005,107380.0,107370.0,0.15957361]
[1734425247134,0.0005,107380.0,107370.0,0.10117361]
[1734425247430,0.059,107380.0,107370.0,0.10117361]
[1734425248420,0.0595,107380.0,107370.0,0.10117361]
[1734425248828,0.4203,107380.0,107370.0,0.10117361]
[1734425249024,0.4203,107380.0,107370.0,0.04657]
[1734425249522,0.4198,107380.0,107370.0,0.10117361]
[1734425250336,0.4203,107380.0,107370.0,0.10117361]
[1734425251229,0.4203,107380.0,107370.0,0.00872579]
[1734425251436,0.52146961,107380.0,107370.0,0.00872579]
[1734425251725,0.57607322,107380.0,107360.0,0.03857444]
[1734425251919,0.57487361,107370.0,107360.0,0.03857444]
[1734425252832,0.046578,107360.0,107340.0,0.04658]
[1734425253136,0.88108161,107350.0,107340.0,0.04658]
[1734425253431,0.88108161,107350.0,107340.0,0.04708]
[1734425253624,0.88108161,107350.0,107340.0,0.05580579]
[1734425253928,0.88108161,107350.0,107340.0,0.07409841]
[1734425254432,0.88108161,107350.0,107340.0,0.04670015]
[1734425254622,0.88108161,107350.0,107340.0,0.00012015]
[1734425255128,0.88108161,107350.0,107330.0,0.046586]
[1734425255129,0.046583,107340.0,107330.0,0.046586]
[1734425255335,0.51778661,107340.0,107330.0,0.046586]
[1734425255524,0.51778661,107340.0,107330.0,0.07946979]
[1734425255729,0.57239022,107340.0,107330.0,0.03288379]
[1734425256038,0.046587,107330.0,107320.0,0.04659]
[1734425256222,0.046587,107330.0,107320.0,0.04670032]
[1734425256223,0.407387,107330.0,107320.0,0.04670032]
[1734425257321,0.49069589,107330.0,107320.0,0.00011032]
[1734425257528,0.046591,107320.0,107310.0,0.046594]
[1734425257728,0.462791,107320.0,107310.0,0.046594]
[1734425258532,0.462791,107320.0,107310.0,0.04669891]
[1734425258831,0.462791,107320.0,107310.0,0.03320654]
[1734425259238,0.54609989,107320.0,107310.0,0.00010491]
[1734425260232,0.462791,107320.0,107310.0,0.04670091]
[1734425260727,0.517491,107320.0,107310.0,0.04670091]
[1734425262243,0.517491,107320.0,107310.0,0.1300098]
[1734425262430,0.517491,107320.0,107310.0,0.04670091]
[1734425264142,0.517491,107320.0,107310.0,0.1300098]
[1734425265346,0.517491,107320.0,107310.0,0.04670091]
[1734425267438,0.4155,107320.0,107310.0,0.1300098]
[1734425267640,0.4155,107320.0,107310.0,0.04670091]
[1734425267844,0.462091,107320.0,107310.0,0.04670091]
[1734425268640,0.462091,107320.0,107310.0,0.00010491]
[1734425269351,0.462091,107320.0,107310.0,0.00060491]
[1734425269352,0.54539989,107320.0,107310.0,0.00060491]
[1734425270149,0.462091,107320.0,107310.0,0.00060491]
[1734425270941,0.462091,107320.0,107310.0,0.04720091]
[1734425271946,0.462091,107320.0,107310.0,0.00060491]
[1734425275251,0.407391,107320.0,107310.0,0.00060491]
[1734425275645,0.407391,107320.0,107310.0,0.04720091]
[1734425277541,0.407391,107320.0,107310.0,0.00060491]
[1734425278646,0.468591,107320.0,107310.0,0.00060491]
[1734425279348,0.468591,107320.0,107310.0,0.04670091]
[1734425280547,0.468591,107320.0,107310.0,0.00010491]
[1734425284152,0.468591,107320.0,107310.0,0.04670091]
[1734425285852,0.468591,107320.0,107310.0,0.00010491]
[1734425286245,0.528591,107320.0,107310.0,0.00010491]
[1734425286957,0.61189989,107320.0,107310.0,0.00010491]
[1734425288552,0.528591,107320.0,107310.0,0.00010491]
[1734425289452,0.528591,107320.0,107310.0,0.04670091]
[1734425289754,0.3608,107320.0,107310.0,0.1300098]
[1734425290158,0.3608,107320.0,107310.0,0.1857098]
[1734425290858,0.3608,107320.0,107310.0,0.19443559]
[1734425291158,0.46375553,107330.0,107320.0,0.046591]
[1734425291344,0.46375553,107330.0,107320.0,0.05531679]
[1734425292553,0.46375553,107330.0,107310.0,0.06817866]
[1734425292950,0.46375553,107330.0,107320.0,0.046591]
[1734425293563,0.46375553,107330.0,107320.0,0.04669256]
[1734425294758,0.54706442,107330.0,107320.0,0.00010156]
[1734425298460,0.46375553,107330.0,107320.0,0.04669256]
[1734425301563,0.40745553,107330.0,107320.0,0.04669256]
[1734425301758,0.36086753,107330.0,107320.0,0.04669256]
[1734425301961,0.44417642,107330.0,107320.0,0.00010156]
[1734425302160,0.84966342,107330.0,107310.0,0.43891117]
[1734425302355,0.046596,107310.0,107300.0,0.47155728]
[1734425302557,0.407396,107310.0,107300.0,0.0413782]
[1734425302768,0.466296,107310.0,107300.0,0.0413782]
[1734425303157,0.466296,107310.0,107300.0,0.03271804]
[1734425303470,0.466296,107310.0,107300.0,0.00057193]
[1734425303667,0.466296,107310.0,107300.0,0.00930402]
[1734425303865,0.466296,107310.0,107300.0,0.00057193]
[1734425304470,0.466296,107310.0,107300.0,7.193e-05]
[1734425305478,0.466296,107310.0,107300.0,0.00057193]
[1734425305662,0.466296,107310.0,107280.0,1.46530635]
[1734425305857,0.3608,107290.0,107280.0,1.51191535]
[1734425306260,0.3608,107290.0,107280.0,1.07300418]
[1734425306670,0.407403,107300.0,107280.0,1.07308649]
[1734425306870,0.407403,107300.0,107290.0,0.44264951]
[1734425307169,0.407403,107300.0,107290.0,0.4513816]
[1734425307558,0.407403,107300.0,107290.0,0.53469049]
[1734425307869,0.3608,107300.0,107290.0,0.5725624]
[1734425309470,0.3608,107300.0,107290.0,0.5730624]
[1734425310365,0.3608,107300.0,107290.0,0.5725624]
[1734425310975,0.3608,107300.0,107290.0,0.58129449]
[1734425311366,0.3608,107300.0,107290.0,0.58179449]
[1734425312476,0.3608,107300.0,107290.0,0.58129449]
[1734425313374,0.3608,107300.0,107290.0,0.58179449]
[1734425315378,0.3608,107300.0,107290.0,0.4984856]
[1734425317079,0.3608,107300.0,107290.0,0.48975351]
[1734425317782,0.4074,107300.0,107290.0,0.44314951]
[1734425318079,0.4669,107300.0,107290.0,0.44314951]
[1734425318671,0.4669,107300.0,107290.0,0.0005]
[1734425319474,0.4669,107300.0,107290.0,0.047104]
[1734425321378,0.4669,107300.0,107290.0,0.48975351]
[1734425322083,0.4669,107300.0,107290.0,0.44314951]
[1734425322275,0.5248,107300.0,107290.0,0.44314951]
[1734425322678,0.60810889,107300.0,107290.0,0.44314951]
[1734425323285,0.60810889,107300.0,107290.0,0.83052003]
[1734425323481,0.60810889,107300.0,107290.0,0.38737052]
[1734425328182,0.60810889,107300.0,107280.0,0.47802132]
[1734425328378,0.467904,107290.0,107280.0,0.53380031]
[1734425329379,0.467904,107290.0,107280.0,0.47793533]
[1734425329580,0.467904,107290.0,107280.0,0.0906508]
[1734425330479,0.55121289,107290.0,107280.0,0.47843799]
[1734425330679,0.467904,107290.0,107280.0,0.47843799]
[1734425331478,0.467904,107290.0,107280.0,0.47793799]
[1734425333685,0.467904,107290.0,107280.0,0.9205875]
[1734425333990,0.467904,107290.0,107280.0,0.56124688]
[1734425334493,0.467904,107290.0,107280.0,0.47793799]
[1734425335585,0.107104,107290.0,107280.0,0.47793799]
[1734425335789,0.467904,107290.0,107280.0,0.47793799]
[1734425335991,0.467904,107290.0,107280.0,0.56124688]
[1734425336192,0.467904,107290.0,107280.0,0.0906508]
[1734425337692,0.4213,107290.0,107280.0,0.6166092]
[1734425338188,0.467904,107290.0,107280.0,0.48669231]
[1734425342292,0.3608,107290.0,107280.0,0.6166102]
[1734425342494,0.3608,107290.0,107280.0,0.7968102]
[1734425342793,0.3608,107290.0,107280.0,0.71350131]
[1734425343091,0.3608,107290.0,107280.0,0.2708518]
[1734425343392,0.407404,107290.0,107280.0,0.1488518]
[1734425343585,0.468604,107290.0,107280.0,0.1488518]
[1734425344296,0.468604,107290.0,107280.0,0.0906518]
[1734425344598,0.468604,107290.0,107280.0,0.47805042]
[1734425346395,0.468604,107290.0,107280.0,0.53275764]
[1734425346985,0.468604,107290.0,107280.0,0.47805042]
[1734425350197,0.468604,107290.0,107280.0,0.0906518]
[1734425350396,0.468604,107290.0,107280.0,0.53330131]
[1734425351497,0.468604,107290.0,107280.0,0.47848971]
[1734425355798,0.468604,107290.0,107280.0,0.30729599]
[1734425355995,0.468604,107290.0,107280.0,0.35390499]
[1734425356398,0.468604,107290.0,107280.0,0.30729599]
[1734425356591,0.52331122,107290.0,107280.0,0.30729599]
[1734425356796,0.52331122,107290.0,107280.0,0.30739198]
[1734425357100,0.468604,107290.0,107280.0,0.33881196]
[1734425357992,0.468604,107290.0,107280.0,0.38542096]
[1734425358393,0.468604,107290.0,107280.0,0.82807047]
[1734425358899,0.468604,107290.0,107280.0,0.52950657]
[1734425359598,0.468604,107290.0,107280.0,0.52077448]
[1734425359797,0.468604,107290.0,107280.0,0.539521]
[1734425360002,0.107804,107290.0,107280.0,0.539521]
[1734425360197,0.829404,107290.0,107280.0,0.539521]
[1734425364210,0.829404,107290.0,107280.0,0.60296031]
[1734425364727,0.829404,107290.0,107280.0,0.54825309]
[1734425365129,0.829404,107290.0,107280.0,0.60296031]
[1734425365296,0.829404,107290.0,107280.0,1.09704847]
[1734425365501,0.829404,107290.0,107280.0,1.15874847]
[1734425365803,0.829404,107290.0,107280.0,0.66504308]
[1734425366007,0.829404,107290.0,107280.0,0.65631099]
[1734425367517,0.829404,107290.0,107280.0,0.60160377]
[1734425368608,0.829404,107290.0,107280.0,0.61033586]
[1734425370310,0.829404,107290.0,107280.0,0.59158934]
[1734425370615,0.829404,107290.0,107280.0,1.08529473]
[1734425370802,0.829404,107290.0,107280.0,0.59158934]
[1734425371510,0.829404,107290.0,107280.0,1.08529473]
[1734425372116,0.829404,107290.0,107280.0,0.59158934]
[1734425373711,0.829404,107290.0,107280.0,0.52988934]
[1734425374607,0.829404,107290.0,107280.0,1.02359473]
[1734425374809,0.829404,107290.0,107280.0,1.04196114]
[1734425375419,0.829404,107290.0,107280.0,0.59892886]
[1734425375922,0.829404,107290.0,107280.0,1.04216967]
[1734425376124,0.829404,107290.0,107280.0,0.59892886]
[1734425379415,0.88411122,107290.0,107280.0,0.59892886]
[1734425380229,0.88411122,107290.0,107280.0,1.0903276]
[1734425380230,0.78978434,107290.0,107280.0,1.0903276]
[1734425380413,0.83638834,107290.0,107280.0,0.53899298]
[1734425381225,0.83638834,107290.0,107280.0,0.48362841]
[1734425381523,0.83638834,107290.0,107280.0,0.98237333]
[1734425381724,0.83638834,107290.0,107280.0,0.48362841]
[1734425383223,0.83638834,107290.0,107280.0,0.98237333]
[1734425383911,0.83638834,107290.0,107280.0,0.48362841]
[1734425384656,0.83638834,107290.0,107280.0,0.8400068]
[1734425384827,0.83638834,107290.0,107280.0,0.83127471]
[1734425385322,0.83638834,107290.0,107280.0,0.8400068]
[1734425385528,0.83638834,107290.0,107280.0,0.83127471]
[1734425385916,0.83638834,107290.0,107280.0,0.38789436]
[1734425395835,0.83638834,107290.0,107280.0,9.599e-05]
[1734425397383,0.83638834,107290.0,107280.0,0.05480321]
[1734425397384,0.78168112,107290.0,107280.0,0.05480321]
[1734425397640,0.78168112,107290.0,107280.0,9.599e-05]
[1734425398031,0.83638834,107290.0,107280.0,9.599e-05]
[1734425398843,0.83638834,107290.0,107280.0,0.38789436]
[1734425400555,0.83638834,107290.0,107280.0,9.599e-05]
[1734425400737,0.83638834,107290.0,107280.0,0.44347634]
[1734425400926,0.83638834,107290.0,107280.0,0.8400068]
[1734425401129,0.83638834,107290.0,107280.0,0.39662645]
[1734425402044,0.83638834,107290.0,107280.0,0.38789436]
[1734425402642,0.11478834,107290.0,107280.0,0.38789436]
[1734425402843,0.83638834,107290.0,107280.0,0.38789436]
[1734425405040,0.11478834,107290.0,107280.0,0.38789436]
[1734425405235,0.83638834,107290.0,107280.0,0.38789436]
[1734425405437,0.83638834,107290.0,107280.0,0.8400068]
[1734425407233,0.83638834,107290.0,107280.0,0.39662645]
[1734425407841,0.11478834,107290.0,107280.0,0.39662645]
[1734425408040,0.83638834,107290.0,107280.0,0.42476424]
[1734425408930,0.83638834,107290.0,107280.0,0.41603215]
[1734425411742,0.83638834,107290.0,107280.0,0.47161413]
[1734425411934,0.83638834,107290.0,107280.0,0.48034622]
[1734425414544,0.83638834,107290.0,107280.0,0.86815437]
[1734425415040,0.78168112,107290.0,107280.0,0.41604193]
[1734425415236,0.82291122,107290.0,107280.0,0.41604193]
[1734425415437,0.82291122,107290.0,107280.0,0.38790414]
[1734425416450,0.768204,107290.0,107280.0,0.38790414]
[1734425416635,0.768204,107290.0,107280.0,0.48922036]
[1734425416836,0.768204,107290.0,107280.0,0.66612036]
[1734425419649,0.768204,107290.0,107280.0,0.74983035]
[1734425420147,0.768204,107290.0,107280.0,0.72169256]
[1734425421437,0.768204,107290.0,107280.0,0.22360499]
[1734425421644,0.768204,107290.0,107280.0,1.05448526]
[1734425422947,0.768204,107290.0,107280.0,0.66698534]
[1734425423254,0.768204,107290.0,107280.0,1.05442203]
[1734425424154,0.82291122,107290.0,107280.0,1.05442203]
[1734425424537,0.82291122,107290.0,107280.0,0.61104168]
[1734425424951,0.82291122,107290.0,107280.0,1.05442203]
[1734425425252,0.82291122,107290.0,107280.0,1.09372312]
[1734425426055,0.82291122,107290.0,107280.0,1.09381839]
[1734425426951,0.82291122,107290.0,107280.0,0.53973238]
[1734425428253,0.82291122,107290.0,107280.0,0.53131341]
[1734425429458,0.82291122,107290.0,107280.0,0.44713678]
[1734425430063,0.82291122,107290.0,107280.0,0.91865492]
[1734425430260,0.82291122,107290.0,107280.0,0.53131341]
[1734425430559,0.82291122,107290.0,107280.0,0.05979527]
[1734425430746,0.87761844,107290.0,107280.0,0.94222054]
[1734425430944,0.93811844,107290.0,107280.0,0.38749011]
[1734425431343,0.93811844,107290.0,107280.0,9.527e-05]
[1734425431753,0.88341122,107290.0,107280.0,9.527e-05]
[1734425432060,0.88341122,107290.0,107280.0,0.38749011]
[1734425433060,0.88341122,107290.0,107280.0,9.527e-05]
[1734425433360,0.88341122,107290.0,107280.0,0.38749011]
[1734425434657,0.88341122,107290.0,107280.0,9.527e-05]
[1734425435957,0.88341122,107290.0,107280.0,0.38749011]
[1734425436460,0.88341122,107290.0,107280.0,9.527e-05]
[1734425436662,0.93811844,107290.0,107280.0,9.527e-05]
[1734425437254,0.88341122,107290.0,107280.0,9.527e-05]
[1734425437854,0.88341122,107290.0,107280.0,0.38749011]
[1734425438352,0.92222154,107290.0,107280.0,0.38749011]
[1734425439951,0.88341122,107290.0,107280.0,0.38749011]
[1734425440754,0.88341122,107290.0,107280.0,9.527e-05]
[1734425441961,0.16181122,107290.0,107280.0,9.527e-05]
[1734425442458,0.88341122,107290.0,107280.0,9.527e-05]
[1734425445459,0.88341122,107290.0,107280.0,0.38749011]
[1734425449166,0.88341122,107290.0,107280.0,9.527e-05]
[1734425449571,0.88341122,107290.0,107280.0,0.38749011]
[1734425451263,0.88341122,107290.0,107280.0,0.83087046]
[1734425451471,0.88341122,107290.0,107280.0,0.38749011]
[1734425451672,0.88341122,107290.0,107280.0,9.527e-05]
[1734425452574,0.88341122,107290.0,107280.0,0.38749011]
[1734425453468,0.768204,107290.0,107280.0,0.38749011]
[1734425453768,0.82291122,107290.0,107280.0,0.38749011]
[1734425456968,0.82291122,107290.0,107280.0,0.83087046]
[1734425457873,0.768204,107290.0,107280.0,0.54351355]
[1734425458080,0.726281,107290.0,107280.0,0.7294885]
[1734425458281,0.768204,107290.0,107280.0,0.7294885]
[1734425458580,0.768204,107290.0,107280.0,1.28082312]
[1734425459081,0.768204,107290.0,107280.0,0.7294885]
[1734425459403,0.768204,107290.0,107280.0,1.28082312]
[1734425460482,0.768204,107290.0,107280.0,0.7294885]
[1734425461176,0.35500444,107290.0,107280.0,0.7294885]
[1734425461875,0.35500444,107290.0,107280.0,1.28082312]
[1734425462281,0.35500444,107290.0,107280.0,0.77334611]
[1734425462478,0.35500444,107290.0,107280.0,0.66433929]
[1734425464396,0.35500444,107290.0,107280.0,1.05136606]
[1734425464807,0.40971166,107290.0,107280.0,0.99665884]
[1734425465204,0.40971166,107290.0,107280.0,0.89014984]
[1734425465205,0.77051166,107290.0,107280.0,0.89014984]
[1734425465409,0.77051166,107290.0,107280.0,0.38712204]
[1734425465888,0.83151166,107290.0,107280.0,0.38712204]
[1734425467101,0.83151166,107290.0,107280.0,0.82944984]
[1734425467508,0.83151166,107290.0,107280.0,0.94990008]
[1734425468014,0.83151166,107290.0,107280.0,0.94116799]
[1734425468315,0.83151166,107290.0,107280.0,0.44242307]
[1734425469817,0.83151166,107290.0,107280.0,0.45115516]
[1734425470003,0.83151166,107290.0,107280.0,0.94990008]
[1734425471002,0.83151166,107290.0,107280.0,0.44242307]
[1734425471307,0.83151166,107290.0,107280.0,0.94990008]
[1734425472204,0.83151166,107290.0,107280.0,0.44242307]
[1734425472402,0.83151166,107290.0,107280.0,0.82966042]
[1734425473004,0.83151166,107290.0,107280.0,0.38733262]
[1734425475823,0.83151166,107290.0,107280.0,9.527e-05]
[1734425476015,0.83151166,107290.0,107280.0,0.38733262]
[1734425477403,0.83151166,107290.0,107280.0,9.527e-05]
[1734425478500,0.88621888,107290.0,107280.0,9.527e-05]
[1734425478689,0.83151166,107290.0,107280.0,9.527e-05]
[1734425479284,0.83151166,107290.0,107280.0,0.04670427]
[1734425479899,0.83151166,107290.0,107280.0,9.527e-05]
[1734425487500,0.16231122,107290.0,107280.0,9.527e-05]
[1734425487698,0.88391122,107290.0,107280.0,9.527e-05]
[1734425492501,0.82291122,107290.0,107280.0,9.527e-05]
[1734425493100,0.768204,107290.0,107280.0,9.527e-05]
[1734425493301,0.768204,107290.0,107280.0,0.16061149]
[1734425493606,0.768204,107290.0,107280.0,0.22181149]
[1734425495304,0.768204,107290.0,107280.0,0.60904884]
[1734425500500,0.407404,107290.0,107280.0,0.60904884]
[1734425500709,0.3608,107290.0,107280.0,0.60904884]
[1734425500914,0.3608,107290.0,107280.0,1.05137664]
[1734425504918,0.3608,107290.0,107280.0,1.06980013]
[1734425505118,0.3608,107290.0,107280.0,0.68256278]
[1734425507719,0.3608,107290.0,107280.0,1.06994015]
[1734425508018,0.3608,107290.0,107280.0,0.62761235]
[1734425510714,0.4216,107300.0,107280.0,0.68231957]
[1734425510926,0.4244,107320.0,107310.0,0.046596]
[1734425511223,0.47125653,107330.0,107320.0,0.046591]
[1734425511422,0.47125653,107330.0,107320.0,0.48867559]
[1734425511608,0.47125653,107330.0,107320.0,0.10129822]
[1734425511810,6.753e-05,107330.0,107320.0,0.15600544]
[1734425512009,6.753e-05,107330.0,107320.0,0.54338281]
[1734425512215,0.4246,107350.0,107340.0,0.046583]
[1734425512421,0.172376,107360.0,107350.0,0.046578]
[1734425512626,0.046578,107350.0,107340.0,0.046582]
[1734425512924,0.46208522,107350.0,107340.0,0.046582]
[1734425513327,0.46208522,107350.0,107340.0,0.04668623]
[1734425515416,0.51679244,107350.0,107340.0,0.00010423]
[1734425516216,0.46208522,107350.0,107340.0,0.00010423]
[1734425520024,0.407378,107350.0,107340.0,0.04668723]
[1734425520223,0.46208522,107350.0,107340.0,0.04668723]
[1734425520429,0.407378,107350.0,107340.0,0.04668723]
[1734425521019,0.46208522,107350.0,107340.0,0.04668723]
[1734425522427,0.407378,107350.0,107340.0,0.04668723]
[1734425522837,0.407378,107350.0,107340.0,0.10139445]
[1734425523831,0.3608,107350.0,107340.0,0.15610167]
[1734425524028,0.3608,107350.0,107340.0,0.21540167]
[1734425524234,0.3608,107350.0,107340.0,0.16069445]
[1734425524436,0.3608,107350.0,107340.0,0.18486001]
[1734425524824,0.3613,107350.0,107340.0,0.18486001]
[1734425526054,0.3613,107350.0,107340.0,0.21340849]
[1734425526839,0.407878,107350.0,107340.0,0.13015279]
[1734425528426,0.0005,107350.0,107340.0,0.13015279]
[1734425529227,0.0005,107350.0,107340.0,0.57420849]
[1734425529438,0.47124179,107370.0,107360.0,0.046574]
[1734425530640,0.47124179,107370.0,107360.0,0.1298297]
[1734425532036,0.47124179,107370.0,107360.0,0.046574]
[1734425532236,0.42467079,107370.0,107360.0,0.046574]
[1734425532431,0.36087079,107370.0,107360.0,0.1298297]
[1734425532632,7.079e-05,107370.0,107360.0,0.4906297]
[1734425534240,7.079e-05,107370.0,107360.0,1.1345897]
[1734425534444,7.079e-05,107370.0,107360.0,1.1922897]
[1734425536345,7.079e-05,107370.0,107360.0,1.19238109]
[1734425536535,0.05,107380.0,107370.0,0.04657]
[1734425536844,0.05,107380.0,107370.0,0.6093257]
[1734425537240,0.05,107380.0,107370.0,0.45331075]
[1734425537445,0.05,107380.0,107370.0,0.49988075]
[1734425537641,0.05,107380.0,107370.0,0.88313645]
[1734425537945,0.024088,107380.0,107370.0,0.88313645]
[1734425538138,0.4608,107400.0,107370.0,0.88313645]
[1734425538338,0.4608,107400.0,107390.0,0.046561]
[1734425542861,0.4608,107400.0,107390.0,0.1298167]
[1734425543147,0.1,107400.0,107390.0,0.1298167]
[1734425543442,0.1,107400.0,107390.0,0.4906167]
[1734425543747,0.1,107400.0,107390.0,0.51477237]
[1734425544545,0.36091235,107420.0,107410.0,0.046552]
[1734425544741,0.00011235,107420.0,107410.0,0.046552]
[1734425546846,0.49071605,107420.0,107410.0,0.046552]
[1734425547747,0.12991605,107420.0,107410.0,0.046552]
[1734425547935,0.06001235,107420.0,107410.0,0.046552]
[1734425548942,0.42081235,107420.0,107410.0,0.046552]
[1734425549140,0.46736035,107420.0,107410.0,0.046552]
[1734425549543,0.10656035,107420.0,107410.0,0.046552]
[1734425549746,0.46736035,107420.0,107410.0,0.046552]
[1734425550245,0.10656035,107420.0,107410.0,0.046552]
[1734425550447,0.46736035,107420.0,107410.0,0.046552]
[1734425550849,0.46736035,107420.0,107410.0,0.07147893]
[1734425552447,0.46736035,107420.0,107400.0,0.65039974]
[1734425552744,0.46736035,107420.0,107410.0,0.046552]
[1734425554950,0.46786035,107420.0,107410.0,0.046552]
[1734425557058,0.46786035,107420.0,107410.0,0.06548582]
[1734425559152,0.42131235,107420.0,107410.0,0.06548582]
[1734425560236,0.42131235,107420.0,107410.0,0.14874152]
[1734425561342,0.42131235,107420.0,107410.0,0.06548582]
[1734425561548,0.06051235,107420.0,107410.0,0.06548582]
[1734425563356,0.06051235,107420.0,107410.0,0.42628582]
[1734425563849,0.06001235,107420.0,107410.0,0.42628582]
[1734425567154,0.06001235,107420.0,107410.0,0.06548582]
[1734425567555,0.06001235,107420.0,107410.0,0.42628582]
[1734425567762,0.06001235,107420.0,107410.0,0.06548582]
[1734425572061,0.06001235,107420.0,107410.0,0.1200578]
[1734425572246,0.06001235,107420.0,107410.0,0.12878989]
[1734425573153,0.52193233,107420.0,107410.0,0.01893382]
[1734425576249,0.52193233,107420.0,107410.0,0.02766591]
[1734425576660,0.52193233,107420.0,107410.0,0.01893382]
[1734425578458,0.52193233,107420.0,107410.0,0.06548582]
[1734425580477,0.16113233,107420.0,107410.0,0.1200578]
[1734425581564,0.16113233,107420.0,107410.0,0.06548582]
[1734425583270,0.16113233,107420.0,107410.0,0.01893382]
[1734425584670,0.52193233,107420.0,107410.0,0.01893382]
[1734425586765,0.52193233,107420.0,107410.0,0.96258157]
[1734425586971,0.48005988,107420.0,107410.0,0.96258157]
[1734425587472,0.48005988,107420.0,107410.0,1.00913357]
[1734425587679,0.48005988,107420.0,107410.0,0.51558481]
[1734425587972,0.48005988,107420.0,107410.0,1.00913357]
[1734425589480,0.48005988,107420.0,107410.0,0.51558481]
[1734425589864,0.48005988,107420.0,107410.0,1.00913357]
[1734425590064,0.48005988,107420.0,107410.0,0.96258157]
[1734425590266,0.48005988,107420.0,107410.0,0.46903281]
[1734425590670,0.528145,107430.0,107410.0,0.5274068]
[1734425590870,0.528145,107430.0,107420.0,0.05457198]
[1734425591077,0.528145,107430.0,107410.0,0.4808548]
[1734425591377,0.58271698,107430.0,107410.0,0.5274038]
[1734425591573,0.58271698,107430.0,107410.0,0.4808548]
[1734425591798,0.58271698,107430.0,107420.0,0.046548]
[1734425591965,0.58271698,107430.0,107420.0,0.05528009]
[1734425592274,0.1208,107430.0,107420.0,0.10985207]
[1734425593074,0.1208,107430.0,107420.0,0.60340083]
[1734425593284,0.1208,107430.0,107420.0,0.10985207]
[1734425594069,0.1208,107430.0,107420.0,0.10111998]
[1734425596372,0.1208,107430.0,107420.0,0.15569196]
[1734425596572,0.1208,107430.0,107420.0,0.51649196]
[1734425596780,0.1208,107430.0,107420.0,0.10111998]
[1734425597482,0.1208,107430.0,107420.0,0.046548]
[1734425597483,0.22191598,107430.0,107420.0,0.046548]
[1734425597779,0.046548,107420.0,107410.0,0.06548582]
[1734425598080,0.10111998,107420.0,107410.0,0.06548582]
[1734425598486,0.046548,107420.0,107410.0,0.1200578]
[1734425601384,0.046548,107420.0,107410.0,0.14667353]
[1734425603283,0.407345,107430.0,107420.0,0.046548]
[1734425603488,0.407345,107430.0,107420.0,0.10111998]
[1734425603687,0.046545,107430.0,107420.0,0.046548]
[1734425604083,0.10111698,107430.0,107420.0,0.046548]
[1734425604278,0.046545,107430.0,107420.0,0.046548]
[1734425604985,0.10111698,107430.0,107420.0,0.046548]
[1734425605688,0.046545,107430.0,107420.0,0.046548]
[1734425606682,0.10111698,107430.0,107420.0,0.046548]
[1734425609685,0.046545,107430.0,107420.0,0.05528009]
[1734425610587,0.10111698,107430.0,107420.0,0.05528009]
[1734425614095,0.10111698,107430.0,107420.0,0.046548]
[1734425614489,0.10111698,107430.0,107420.0,0.05528009]
[1734425614796,0.46191698,107430.0,107420.0,0.00873209]
[1734425615398,0.56303396,107430.0,107410.0,0.05428164]
[1734425615604,0.27971998,107420.0,107410.0,0.05428164]
[1734425615899,0.69509196,107420.0,107410.0,0.00873209]
[1734425616113,0.33429196,107420.0,107400.0,0.05578809]
[1734425616400,0.10112398,107410.0,107400.0,0.05578809]
[1734425616602,0.10112398,107410.0,107400.0,0.08953713]
[1734425616800,0.225149,107420.0,107410.0,0.046552]
[1734425616995,0.1786,107420.0,107410.0,0.47065607]
[1734425617191,0.1156,107420.0,107410.0,0.47065607]
[1734425617591,0.74241641,107440.0,107430.0,0.046544]
[1734425617795,0.91928839,107440.0,107430.0,0.046544]
[1734425618086,0.91978839,107440.0,107430.0,0.046544]
[1734425618490,0.64671457,107440.0,107430.0,0.10111598]
[1734425618701,0.64671457,107440.0,107430.0,0.10120145]
[1734425619105,0.46091457,107440.0,107430.0,0.10120145]
[1734425620105,0.10061457,107440.0,107430.0,0.46200145]
[1734425621702,0.10061457,107440.0,107430.0,0.86025343]
[1734425622000,0.3608,107460.0,107450.0,0.046535]
[1734425622203,0.3608,107460.0,107450.0,0.10110698]
[1734425623700,0.64810098,107470.0,107450.0,0.10110698]
[1734425623701,0.4832,107470.0,107460.0,0.046531]
[1734425623893,0.4832,107470.0,107460.0,0.10110298]
[1734425624094,0.4832,107470.0,107460.0,0.046531]
[1734425624808,0.529726,107470.0,107460.0,0.046531]
[1734425625100,0.168926,107470.0,107460.0,0.046531]
[1734425625298,0.015469,107460.0,107450.0,0.4226]
[1734425625503,0.015469,107460.0,107450.0,0.469135]
[1734425626806,0.015469,107460.0,107450.0,0.407335]
[1734425627005,0.015469,107460.0,107450.0,0.046535]
[1734425627503,0.14508759,107460.0,107450.0,0.03327303]
[1734425627800,0.062,107460.0,107440.0,0.465137]